Cogmind - Beta 14 @@@ ROGUE MODE // 2025.01.10 @ 23:05:16 Player: Nika Jay Result: Self-destructed Performance ------------- Evolutions (4) 2000 Regions Visited (7) 1400 Robots Destroyed (82) 410 Value Destroyed (2461) 2461 Prototype IDs (15) 300 Alien Tech Used (0) 0 Bonus (120) 120 TOTAL SCORE: 6691 Bonus ------- High Alert Combat Kills 52 Follower Combat Kills 68 Cogmind --------- Core Integrity 786/850 Matter 218/300 Energy 254/310 System Corruption 11% Temperature Cool (0) Movement Walking (122) Location -6/Factory Parts ------- > --- POWER (1) -------- Cooled Deuterium Engine > --- PROPULSION (6) --- Light Treads Aluminum Leg Improved Aluminum Leg Carbon-fiber Leg Improved Titanium Leg Flexi-carbon Leg > --- UTILITY (5) ------ Large Storage Unit Advanced Sensor Array Improved Signal Interpreter Powered Armor Improved Shield Generator > --- WEAPON (3) ------- Gauss Rifle Gauss Rifle Gauss Rifle > --- INVENTORY (15) --- Cooled Deuterium Engine Light Treads VSS Leg VSS Leg Improved Titanium Leg Improved Titanium Leg Improved Medium Armor Plating Improved Medium Armor Plating Gauss Rifle Gauss Rifle Long-range Missile Launcher Datajack Plasma Cutter Power Maul Peak State ------------ > --- POWER ------------ Cooled Deuterium Engine > --- PROPULSION ------- Aluminum Leg Improved Aluminum Leg Carbon-fiber Leg Improved Titanium Leg Flexi-carbon Leg Combat Airjet > --- UTILITY ---------- Large Storage Unit Advanced Sensor Array Improved Signal Interpreter Powered Armor Improved Shield Generator > --- WEAPON ----------- Gauss Rifle Gauss Rifle Gauss Rifle > --- INVENTORY -------- Cooled Deuterium Engine VSS Leg VSS Leg Improved Titanium Leg Improved Titanium Leg Improved Medium Armor Plating Improved Medium Armor Plating Improved Shield Generator Gauss Rifle Gauss Rifle Gauss Rifle Rocket Launcher Datajack Plasma Cutter Power Maul [Rating: 59] Favorites ----------- Power Cooled Deuterium Engine Engine Cooled Deuterium Engine Propulsion Aluminum Leg Treads Light Treads Leg Aluminum Leg Hover Unit Combat Airjet Utility Large Storage Unit Device Seismic Detector Storage Large Storage Unit Processor Improved Signal Interpreter Hackware Hacking Suite Protection Powered Armor Weapon Gauss Rifle Ballistic Gun Gauss Rifle Impact Weapon Power Maul Special Melee Weapon Datajack Build | -11 -10 -10 -10 -9 -8 -7 -6 ------- Run | Yrd Mat Min Exi Min Mat Fac Fac Slots Evolved 8 | . . . . . 4 2 2 Power . | . . . . . . . . Propulsion 4 | . . . . . 2 1 1 Utility 3 | . . . . . 2 . 1 Weapon 1 | . . . . . . 1 . Parts Attached 70 | 7 . 3 3 8 19 14 16 Power 6 | 1 . 1 . 2 1 1 . Engine 6 | 1 . 1 . 2 1 1 . Core . | . . . . . . . . Reactor . | . . . . . . . . Propulsion 25 | 2 . 1 . 4 6 5 7 Treads 3 | . . . . . . . 3 Leg 21 | 2 . 1 . 4 6 5 3 Wheel . | . . . . . . . . Hover 1 | . . . . . . . 1 Flight . | . . . . . . . . Utility 16 | 2 . . 1 . 7 2 4 Device 6 | 1 . . . . 2 1 2 Storage 3 | 1 . . 1 . . . 1 Processor 1 | . . . . . . . 1 Hackware 1 | . . . . . 1 . . Protection 5 | . . . . . 4 1 . Artifact . | . . . . . . . . Weapon 23 | 2 . 1 2 2 5 6 5 Energy Gun . | . . . . . . . . Energy Cannon . | . . . . . . . . Ballistic Gun 17 | 2 . 1 1 2 3 5 3 Ballistic Cannon . | . . . . . . . . Launcher . | . . . . . . . . Special Weapon . | . . . . . . . . Impact Weapon 5 | . . . . . 2 1 2 Slashing Weapon . | . . . . . . . . Piercing Weapon . | . . . . . . . . Special Melee Weapon 1 | . . . 1 . . . . Unidentified Prototypes 1 | . . . . . . 1 . Parts Lost 8 | . . 1 . 3 2 . 2 Power . | . . . . . . . . Propulsion 2 | . . . . 2 . . . Utility 3 | . . . . . 2 . 1 Weapon 3 | . . 1 . 1 . . 1 Highest Loss Streak 2 | . . 1 . 2 1 . 1 To Critical Strikes . | . . . . . . . . Average Slot Usage (%) 99 | . 100 100 100 99 97 99 99 Engine 8 | . 14 14 14 14 8 7 6 Leg 34 | . 28 28 28 27 36 37 37 Device 13 | . 14 14 14 14 11 15 13 Storage 8 | . 14 14 14 14 9 7 6 Processor 1 | . . . . . . . 5 Protection 5 | . . . . . 8 7 6 Ballistic Gun 22 | . 28 28 22 28 17 22 19 Peak Build Rating 59 | 7 7 7 7 10 23 45 59 Average Rating 33 | 6 7 6 7 9 21 38 55 On Entrance 13 | . 7 7 7 7 10 23 45 Naked Turns . | . . . . . . . . Heaviest Build 58 | 15 15 15 27 32 43 58 58 Greatest Support 95 | 20 20 20 20 20 47 75 95 Greatest Overweight (x) 2 | . . . 1 2 . . . Average Overweight (x) . | . . . . 1 . . . Largest Inventory Capacity 15 | 8 8 8 15 15 15 15 15 Average Capacity 13 | 7 8 8 8 15 15 15 15 Most Carried 15 | 3 4 8 8 13 15 15 15 Average Carried 13 | 2 3 7 8 11 14 14 14 Final Capacity 15 | 8 8 8 15 15 15 15 15 Final Carried 15 | 3 4 8 8 13 15 15 14 Class Distribution -------------------- 37% | Tank 21% | Mutant 21% | Scavenger-Tank 20% | Scavenger-Mutant Dominant Class ---------------- Mutant | -10/Materials Mutant | -10/Mines Mutant | -10/Exiles Scavenger-Mutant | -9/Mines Scavenger-Mutant | -8/Materials Scavenger-Tank | -7/Factory Tank | -6/Factory Resources | -11 -10 -10 -10 -9 -8 -7 -6 ----------- Run | Yrd Mat Min Exi Min Mat Fac Fac Matter Collected 2931 | 330 . 175 30 136 446 661 1153 Remotely . | . . . . . . . . Salvage Created 3616 | 168 . 177 . 262 719 590 1700 Parts 219 | 16 . 14 . 17 45 38 89 Haulers Intercepted 1 | . . . . . 1 . . Recyclers Shooed 10 | . . 2 . 1 1 3 3 Parts Field Recycled . | . . . . . . . . Retrieved Matter . | . . . . . . . . Parts Self-Destructed . | . . . . . . . . Prevented . | . . . . . . . . Kills | -11 -10 -10 -10 -9 -8 -7 -6 ------- Run | Yrd Mat Min Exi Min Mat Fac Fac Combat Hostiles Destroyed 44 | . . 8 . 4 9 6 17 Guns 44 | . . 8 . 4 9 6 17 Classes Destroyed 12 | 3 . 2 . 1 4 1 1 Worker 7 | 1 . . . . . 2 4 Tunneler 7 | 5 . . . . 1 . 1 Hauler 1 | . . . . . 1 . . Recycler 11 | 1 . . . 1 1 3 5 Mechanic 1 | . . . . . 1 . . Watcher 11 | . . . . . 3 2 6 Swarmer 10 | . . 6 . . . . 4 Grunt 9 | . . 2 . 2 3 . 2 Brawler 2 | . . . . . . . 2 Sentry 12 | . . . . 2 5 2 3 Specialist 1 | . . . . . 1 . . Programmer 10 | . . . . . . 4 6 Best Kill Streak 4 | 4 . 3 . 2 3 2 4 Combat Bots Only 3 | . . 3 . 2 2 1 3 Max Kills in Single Turn 2 | 2 . 1 . 1 1 1 1 Gunslinging . | . . . . . . . . Exploded . | . . . . . . . . Melee . | . . . . . . . . Uniques/NPCs Destroyed . | . . . . . . . . Combat | -11 -10 -10 -10 -9 -8 -7 -6 -------- Run | Yrd Mat Min Exi Min Mat Fac Fac Hostile Shots Fired 481 | . . 62 . 39 61 107 212 Missed 156 | . . 12 . 7 25 38 74 Damage Taken 3037 | . . 442 . 470 510 463 1152 Core 302 | . . 81 . 83 58 16 64 Absorbed by Shields 617 | . . . . . . 168 449 Regen/Repaired (Parts) 137 | . . . . . 137 . . Core Remaining (%) 80 | 100 . . . 34 89 97 . Volleys Fired 246 | 10 . 28 . 21 61 43 83 Largest 3 | 2 . 2 . 2 2 3 3 Hottest 84 | 40 . 40 . 43 46 84 84 Shots Fired 614 | 20 . 56 . 42 122 129 245 Gun 614 | 20 . 56 . 42 122 129 245 Cannon . | . . . . . . . . Launcher . | . . . . . . . . Special . | . . . . . . . . Kinetic 614 | 20 . 56 . 42 122 129 245 Thermal . | . . . . . . . . Explosive . | . . . . . . . . Electromagnetic . | . . . . . . . . Robot Hit Streak 22 | 6 . 13 . 12 22 16 12 Robot Miss Streak 8 | 2 . 8 . 1 4 4 5 Penetration Max 1 | . . . . . . . 1 Secondary Targets 5 | . . 3 . 1 . . 1 Max Gunslinging Chain 1 | . . 1 . 1 . . 1 Shots Hit Robots 408 | 14 . 27 14 33 89 84 147 Core Hits 155 | 8 . 12 . 14 36 22 63 Critical Kills 2 | . . . . . 1 . 1 Critical Parts Destroyed 2 | . . . . . 1 . 1 Critical Strikes 4 | . . . . . 2 . 2 Destroy 4 | . . . . . 2 . 2 Melee Attacks 27 | . . . 14 . 8 1 4 Impact 13 | . . . . . 8 1 4 Slashing . | . . . . . . . . Piercing . | . . . . . . . . Sneak Attacks 15 | . . . 14 . . . 1 Combat Hostiles . | . . . . . . . . Follow-up Attacks . | . . . . . . . . Damage Inflicted 7474 | 195 . 354 . 347 1154 1779 3645 Guns 7141 | 195 . 351 . 333 1154 1779 3329 Cannons . | . . . . . . . . Explosions 164 | . . . . . . . 164 Melee 101 | . . . . . . . 101 Ramming 68 | . . 3 . 14 . . 51 Kinetic 7141 | 195 . 351 . 333 1154 1779 3329 Thermal 164 | . . . . . . . 164 Explosive . | . . . . . . . . Electromagnetic . | . . . . . . . . Impact 101 | . . . . . . . 101 Slashing . | . . . . . . . . Piercing . | . . . . . . . . Highest Corruption 11 | . . . . . . 3 11 Average Corruption 5 | . . . . . . 2 6 Corruption Purged . | . . . . . . . . Corruption Blocked . | . . . . . . . . Effects 51 | . . . . . . 14 37 Message Errors 11 | . . . . . . 5 6 Matter Fused 11 | . . . . . . 2 9 Heat Flow Errors 5 | . . . . . . 2 3 Energy Discharges 6 | . . . . . . 3 3 Parts Fused 1 | . . . . . . . 1 Data Loss (minor) 7 | . . . . . . . 7 Data Loss (major) 1 | . . . . . . 1 . Misfires 1 | . . . . . . . 1 Alerts 3 | . . . . . . 1 2 Weapon Failures 5 | . . . . . . . 5 Overload Shots . | . . . . . . . . Overflow Damage 130 | . . . . . . . 130 Projectiles . | . . . . . . . . Explosions 64 | . . . . . . . 64 Melee 66 | . . . . . . . 66 Knockbacks . | . . . . . . . . Impact . | . . . . . . . . Kinetic . | . . . . . . . . Secondary . | . . . . . . . . Self-Inflicted Damage . | . . . . . . . . Shots . | . . . . . . . . Rammed . | . . . . . . . . Targets Rammed 9 | . . 1 . 2 . . 6 Kicked 9 | . . 1 . 2 . . 6 Crushed . | . . . . . . . . Highest Temperature 263 | 6 . 20 . 27 15 215 263 Average Temperature 26 | 6 . 8 . 9 5 23 57 Received Heat Transfer 820 | . . 87 . 237 189 80 227 Effects 2 | . . . . . . . 2 Interference 2 | . . . . . . . 2 Siege Activations . | . . . . . . . . Robots Corrupted 1 | . . . . . . . 1 Combat Hostiles . | . . . . . . . . Parts Fried 1 | . . . . . . . 1 Impact Corruptions 3 | . . . . . . . 3 Robots Melted . | . . . . . . . . Combat Hostiles . | . . . . . . . . Parts Melted . | . . . . . . . . Heat Transferred 150 | . . . . . . . 150 Parts Sabotaged . | . . . . . . . . Parts Stolen . | . . . . . . . . Parts Stripped . | . . . . . . . . Power Chain Reactions . | . . . . . . . . Alert | -11 -10 -10 -10 -9 -8 -7 -6 ------- Run | Yrd Mat Min Exi Min Mat Fac Fac Peak Influence 705 | 35 22 118 . 90 299 112 705 Initial 37 | . 22 8 . . . 31 37 Average 105 | 19 22 84 . 49 150 45 170 Maximum Alert Level 3 | . . . . . 1 . 3 Low Security (%) 87 | 100 100 100 . 100 69 100 76 Level 1 5 | . . . . . 30 . 3 Level 2 6 | . . . . . . . 17 Level 3 . | . . . . . . . 1 Level 4 . | . . . . . . . . Level 5 . | . . . . . . . . High Security . | . . . . . . . . Max Security . | . . . . . . . . Squads Dispatched 13 | . . . . . 2 5 6 Investigation 2 | . . . . . . 1 1 Extermination 8 | . . . . . . 4 4 Reinforcement 3 | . . . . . 2 . 1 Assault . | . . . . . . . . Garrison . | . . . . . . . . Intercept . | . . . . . . . . Searches Triggered . | . . . . . . . . Construction Impeded . | . . . . . . . . Haulers Reinforced . | . . . . . . . . Active Scanning Responses . | . . . . . . . . Cargo Convoy Interrupts 1 | . . . . . . . 1 Stealth | -11 -10 -10 -10 -9 -8 -7 -6 --------- Run | Yrd Mat Min Exi Min Mat Fac Fac Distress Signals 6 | . . . . . 4 . 2 Communications Jammed . | . . . . . . . . Distress Signals . | . . . . . . . . Times Spotted 80 | . . 8 . 5 23 15 29 Peak Tracking Total 6 | . . 3 . 3 5 2 6 Tactical Retreats . | . . . . . . . . Traps | -11 -10 -10 -10 -9 -8 -7 -6 ------- Run | Yrd Mat Min Exi Min Mat Fac Fac Traps Triggered 2 | . . . . . . . 2 Indirectly . | . . . . . . . . Trap Hack Attempts . | . . . . . . . . Triggered . | . . . . . . . . Disarmed . | . . . . . . . . Reprogrammed . | . . . . . . . . Reused . | . . . . . . . . Traps Extracted . | . . . . . . . . Installed . | . . . . . . . . Triggered 1 | . . . . . . . 1 Machines | -11 -10 -10 -10 -9 -8 -7 -6 ---------- Run | Yrd Mat Min Exi Min Mat Fac Fac Machines Disabled 12 | . . . . . . 1 11 Max in Single Turn 6 | . . . . . . 1 6 Garrison Access 1 | . . . . . . . 1 Machines Repaired . | . . . . . . . . Machines Dismantled . | . . . . . . . . Machines Sabotaged . | . . . . . . . . Overloaded Fab Kills . | . . . . . . . . Hacking | -11 -10 -10 -10 -9 -8 -7 -6 --------- Run | Yrd Mat Min Exi Min Mat Fac Fac Machines Accessed 22 | . . . 1 . 4 8 9 Terminals 13 | . . . . . 3 4 6 Fabricators 2 | . . . . . . 2 . Repair Stations 1 | . . . . . 1 . . Recycling Units 2 | . . . . . . . 2 Scanalyzers 1 | . . . . . . 1 . Garrison Access 2 | . . . . . . 1 1 Total Hacks 47 | . . . 4 . 10 17 16 Successful 21 | . . . 4 . 6 8 3 Failed 26 | . . . . . 4 9 13 Catastrophic 7 | . . . . . 2 2 3 Database Lockouts . | . . . . . . . . Manual 30 | . . . . . 5 9 16 Terminals 28 | . . . . . 6 10 12 Fabricators 3 | . . . . . . 3 . Repair Stations 4 | . . . . . 4 . . Recycling Units 2 | . . . . . . . 2 Scanalyzers 2 | . . . . . . 2 . Garrison Access 4 | . . . . . . 2 2 Terminal Hacks 9 | . . . 4 . 1 4 . Record 5 | . . . 4 . . 1 . Level Access Points 1 | . . . . . . 1 . Branch Access Points 1 | . . . . . 1 . . Locate Traps 1 | . . . . . . 1 . Zone Layout 1 | . . . . . . 1 . Fabricator Hacks . | . . . . . . . . Repair Station Hacks 4 | . . . . . 4 . . Scan Component 2 | . . . . . 2 . . Repair 2 | . . . . . 2 . . Recycling Unit Hacks . | . . . . . . . . Scanalyzer 1 | . . . . . . 1 . Insert Component 1 | . . . . . . 1 . Garrison Access Hacks . | . . . . . . . . Unauthorized Hacks 7 | . . . . . 1 3 3 Terminals 4 | . . . . . 1 2 1 Botnet 4 | . . . . . 1 2 1 Fabricators 1 | . . . . . . 1 . Haulers 1 | . . . . . . 1 . Repair Stations . | . . . . . . . . Recycling Units 1 | . . . . . . . 1 Recyclers 1 | . . . . . . . 1 Scanalyzers . | . . . . . . . . Garrison Access 1 | . . . . . . . 1 Jam 1 | . . . . . . . 1 Data Cores Recovered 1 | . . . . . 1 . . Used . | . . . . . . . . Hacking Detections 17 | . . . . . 2 7 8 Full Trace Events 1 | . . . . . . 1 . Feedback Events . | . . . . . . . . Feedback Blocked . | . . . . . . . . Robot Schematics Acquired . | . . . . . . . . Robots Built . | . . . . . . . . Authchips . | . . . . . . . . Time . | . . . . . . . . Total Robot Build Rating . | . . . . . . . . Part Schematics Acquired . | . . . . . . . . Parts Built . | . . . . . . . . Authchips . | . . . . . . . . Time . | . . . . . . . . Total Part Build Rating . | . . . . . . . . Parts Repaired 2 | . . . . . 2 . . Time 70 | . . . . . 70 . . Parts Recycled . | . . . . . . . . Recycled Matter . | . . . . . . . . Retrieved Matter . | . . . . . . . . Retrieved Components . | . . . . . . . . Parts Scanalyzed . | . . . . . . . . Part Schematics Acquired . | . . . . . . . . Parts Damaged . | . . . . . . . . Bothacking | -11 -10 -10 -10 -9 -8 -7 -6 ------------ Run | Yrd Mat Min Exi Min Mat Fac Fac Used RIF Installer . | . . . . . . . . Robots Hacked 5 | . . . 5 . . . . Non-combat 3 | . . . 3 . . . . Combat 2 | . . . 2 . . . . Robot Hacks Applied 14 | . . . 14 . . . . parse_system 14 | . . . 14 . . . . Relay Couplers Released . | . . . . . . . . Fabnet Peak Effective % . | . . . . . . . . Robots Rewired . | . . . . . . . . Allies Hacked . | . . . . . . . . Hacks Repelled . | . . . . . . . . Allies | -11 -10 -10 -10 -9 -8 -7 -6 -------- Run | Yrd Mat Min Exi Min Mat Fac Fac Total Allies 3 | . . . . 3 . . . Largest Group 3 | . . . . 3 3 . . Highest-Rated Group 40 | . . . . 40 40 . . Highest-Rated Ally 16 | . . . . 16 16 . . Total Orders . | . . . . . . . . Ally Attacks 20 | . . . . . 20 . . Total Damage 209 | . . . . . 209 . . Kills 3 | . . . . . 3 . . Allies Corrupted . | . . . . . . . . Allies Melted . | . . . . . . . . Intel | -11 -10 -10 -10 -9 -8 -7 -6 ------- Run | Yrd Mat Min Exi Min Mat Fac Fac Robot Analysis Total . | . . . . . . . . Derelict Logs Recovered 3 | . . 2 . 1 . . . Drone Launches . | . . . . . . . . Drone Recoveries . | . . . . . . . . Exploration | -11 -10 -10 -10 -9 -8 -7 -6 ------------- Run | Yrd Mat Min Exi Min Mat Fac Fac Turns Passed 7448 | 180 105 726 492 580 945 2075 2345 Spaces Moved 4186 | 112 87 517 370 263 470 1039 1328 Core 4 | 4 . . . . . . . Treads . | . . . . . . . . Legs 4182 | 108 87 517 370 263 470 1039 1328 Wheels . | . . . . . . . . Hover . | . . . . . . . . Flight . | . . . . . . . . Fastest Speed 50 | 50 120 120 120 190 120 122 120 Average Speed 126 | 117 120 120 126 190 121 123 121 Slowest Speed 260 | 120 120 120 190 260 122 124 124 Overloaded Moves . | . . . . . . . . Propulsion Burnouts . | . . . . . . . . Robots Hopped . | . . . . . . . . Cave-ins Triggered . | . . . . . . . . Exploration Rate (%) 40 | 5 26 98 60 46 31 27 29 Regions Visited 7 Branch Regions 3 Pre-discovered Areas 1 | . . . 1 . . . . Known Exits Taken 2 | . . . . . 1 1 . Unknown Exits Taken 5 | 1 1 1 1 1 . . . Scrap Searched 4 | . . 2 . 2 . . . Spaces Dug 9 | . . . . . 5 1 3 Terrain Destroyed 110 | . . . . . 5 2 103 Melee 9 | . . . . . 5 1 3 Projectile 5 | . . . . . . 1 4 AOE 95 | . . . . . . . 95 Terrain Rammed . | . . . . . . . . Walls Destroyed . | . . . . . . . . Machines Disabled . | . . . . . . . . Actions | -11 -10 -10 -10 -9 -8 -7 -6 --------- Run | Yrd Mat Min Exi Min Mat Fac Fac Total 5815 | 137 87 569 387 304 718 1748 1865 Wait 1183 | 6 . 11 . . 127 617 422 Move 4179 | 111 86 516 369 262 469 1038 1328 Hop . | . . . . . . . . Pick Up 51 | 3 1 7 . 7 17 15 1 Fast Attach 18 | 7 . . . 1 5 2 3 Attach 12 | . . 2 . 2 4 2 2 Detach 2 | . . . . . . 1 1 Swap 40 | . . 1 3 5 10 10 11 Drop 48 | . . 3 1 4 17 19 4 Fire 246 | 10 . 28 . 21 61 43 83 Melee 27 | . . . 14 . 8 1 4 Ram . | . . . . . . . . Kick 9 | . . 1 . 2 . . 6 Crush . | . . . . . . . . Escape Stasis . | . . . . . . . . Rewire . | . . . . . . . . Trap . | . . . . . . . . Miscellaneous . | . . . . . . . . Route ------- -11/Scrapyard -10/Materials -10/Mines (discovered 3 exits: [*Mat x2] / *Exi) -10/Exiles -9/Mines -8/Materials (discovered 2 exits: *Fac x2) -7/Factory (discovered 5 exits: *Fac x4 / Sto) -6/Factory History --------- Turn | Location | Event 42 | -11/Scrapyard | Discovered new exit (range 15) 181 | -11/Scrapyard | Entered Materials 275 | -10/Materials | Discovered new exit (range 10) 286 | -10/Materials | Entered Mines 315 | -10/Mines | Build established: Mutant 350 | -10/Mines | Discovered new exit (range 6) 416 | -10/Mines | Learned location of 2 exits from Materials 424 | -10/Mines | A weapon hastily lodged in a ceiling crevice suddenly fell to the ground 451 | -10/Mines | Learned Materials stockpile data 453 | -10/Mines | Discovered new exit (range 10) 987 | -10/Mines | Found a damaged Exp. Sensor Array with a note attached 1007 | -10/Mines | Deemed a non-threat by the Exiles lab entrance 1007 | -10/Mines | Discovered new exit (range 5) 1012 | -10/Mines | Entered Exiles 1041 | -10/Exiles | Met 8R-AWN 1063 | -10/Exiles | Met EX-HEX 1110 | -10/Exiles | Met EX-DEC 1114 | -10/Exiles | Learned location of Zion (-6) 1136 | -10/Exiles | Met EX-BIN 1479 | -10/Exiles | Discovered new exit (range 14) 1504 | -10/Exiles | Entered Mines 1643 | -9/Mines | Core integrity fell below 50% 1820 | -9/Mines | Build established: Scavenger-Mutant 1829 | -9/Mines | Assisted by bots powering up and referring to "LRC-V3" 1948 | -9/Mines | Received a Rocket Launcher from a helpful Derelict 2065 | -9/Mines | Discovered new exit (range 11) 2084 | -9/Mines | Entered Materials 2084 | -8/Materials | Accompanied by 3 allies 2084 | -8/Materials | Evolved 4 slots: Propulsion x2, Utility x2 2085 | -8/Materials | Identified exit to Factory 2223 | -8/Materials | Lost 3 allies 2913 | -8/Materials | Repaired Hrd. Medium Armor Plating 2946 | -8/Materials | Repaired Imp. Ion Engine 3029 | -8/Materials | Entered Factory 3029 | -7/Factory | Evolved 2 slots: Propulsion x1, Weapon x1 3030 | -7/Factory | Identified exit to Storage 3327 | -7/Factory | Build established: Scavenger-Tank 4596 | -7/Factory | Found Powered Armor 4898 | -7/Factory | Build established: Tank 5058 | -7/Factory | Identified exit to Factory 5104 | -7/Factory | Entered another Factory area 5104 | -6/Factory | Evolved 2 slots: Propulsion x1, Utility x1 6435 | -6/Factory | Cargo convoy interrupted 6911 | -6/Factory | System corruption reached 10% 7381 | -6/Factory | Spotted B-75 Beast 7449 | -6/Factory | Self-destructed Last Messages --------------- 07397_ Slug penetrates Assembly Bed. 07398_ K-01 Serf collects debris. 07400_ Assembly Bed disabled. 07400_ Slug penetrates Wall. 07403_ K-01 Serf collects debris. 07403_ Slug penetrates Wall. 07403_ Destroyed Lgt. Deuterium Engine. 07404_ K-01 Serf collects debris. 07407_ Slug penetrates W-25 Informer. 07407_ W-25 Informer destroyed. 07407_ Slug penetrates Wall. 07408_ U-05 Engineer builds a Wall. 07408_ K-01 Serf collects debris. 07421_ EYYUJ//%MDE%